bitfinex/quotes_ETHUSD_20260103
["timestamp","ask_amount","ask_price","bid_price","bid_amount"]
[1767455568938,0.002,3104.5,3104.1,4.16288848]
[1767455572908,0.002,3104.5,3104.1,0.9413804]
[1767455573083,2.45861966,3104.5,3104.1,0.9413804]
[1767455573253,2.45861966,3104.5,3104.0,3.2224084]
[1767455573753,2.45661966,3104.4,3104.0,0.00080296]
[1767455574779,2.45661966,3104.4,3104.0,0.84580296]
[1767455575782,0.002,3104.5,3104.0,4.06738673]
[1767455576692,0.002,3104.5,3104.0,6.3979496]
[1767455576852,0.002,3104.5,3104.1,0.7037702]
[1767455577960,2.49888379,3104.5,3104.1,0.7037702]
[1767455578167,2.49888379,3104.5,3104.0,0.00080296]
[1767455579668,2.49888379,3104.5,3104.0,3.22244415]
[1767455579669,2.45861966,3104.5,3104.0,3.22244415]
[1767455580483,2.45861966,3104.5,3104.0,0.00080296]
[1767455580689,5.67975964,3104.5,3104.0,0.00080296]
[1767455583272,2.34557315,3104.4,3104.0,0.00080296]
[1767455584999,2.34557315,3104.2,3104.0,0.00080296]
[1767455585303,0.002,3104.5,3104.0,2.33850788]
[1767455586500,0.002,3104.5,3104.0,2.33950788]
[1767455588910,0.002,3104.5,3104.0,5.56110865]
[1767455590281,0.002,3104.5,3104.0,6.73393659]
[1767455594506,0.002,3104.5,3104.2,2.33770492]
[1767455594686,0.00280264,3104.9,3104.2,2.33770492]
[1767455594893,3.22358349,3104.9,3104.2,2.33770492]
[1767455595189,3.22358349,3104.9,3104.3,2.33770492]
[1767455595709,0.002,3104.5,3104.3,2.33770492]
[1767455595903,3.22358349,3104.9,3104.3,2.33770492]
[1767455600120,5.56915664,3104.9,3104.3,2.33770492]
[1767455604395,5.56915664,3104.9,3104.2,5.06193647]
[1767455604608,2.34557315,3104.8,3104.3,0.73996414]
[1767455606831,5.56649405,3104.8,3104.3,0.73996414]
[1767455611841,5.56849405,3104.8,3104.2,1.84054217]
[1767455612009,8.78941495,3104.8,3104.2,1.84054217]
[1767455613620,2.40497455,3104.7,3104.2,1.84054217]
[1767455614733,2.40497455,3104.7,3104.2,0.99554217]
[1767455615039,2.40497455,3104.7,3104.2,1.84054217]
[1767455615740,2.40497455,3104.7,3104.2,0.845]
[1767455616039,5.62594435,3104.7,3104.2,0.845]
[1767455617240,2.40497455,3104.6,3104.1,3.2214451]
[1767455617409,2.40497455,3104.6,3104.0,4.06843761]
[1767455618037,5.62607811,3104.6,3104.0,4.06843761]
[1767455618240,5.62607811,3104.6,3104.1,0.64061425]
[1767455622462,5.62807811,3104.6,3104.1,0.64061425]
[1767455625948,5.62807811,3104.6,3104.1,3.22152859]
[1767455625949,2.40697455,3104.6,3104.1,3.22152859]
[1767455626255,5.62804366,3104.6,3104.0,4.06841139]
[1767455627156,5.62804366,3104.6,3104.0,6.40611631]
[1767455637357,0.002,3104.6,3104.0,6.40611631]
[1767455637563,0.002,3104.6,3104.1,2.33770492]
[1767455640063,0.002,3104.6,3104.1,6.52198968]
[1767455641346,0.002,3104.6,3104.1,4.18428476]
[1767455642463,0.002,3104.6,3104.1,0.96278666]
[1767455642667,0.002,3104.6,3104.0,0.84680296]
[1767455642835,2.2535761,3104.6,3104.0,0.84680296]
[1767455644138,5.47465863,3104.6,3104.0,4.06845092]
[1767455645968,2.2515761,3104.5,3104.0,4.06845092]
[1767455661390,2.2535761,3104.5,3104.0,4.06845092]
[1767455671098,2.2535761,3104.5,3104.0,8.01912067]
[1767455671291,0.002,3104.6,3104.1,2.39395393]
[1767455675399,0.002,3104.6,3104.2,5.61539584]
[1767455678374,0.002,3104.6,3104.3,2.39395393]
[1767455678712,0.002,3104.6,3104.4,2.63334932]
[1767455679001,0.002,3104.8,3104.4,2.63334932]
[1767455679797,0.002,3104.8,3104.4,0.23939539]
[1767455680002,0.002,3104.6,3104.2,2.39395393]
[1767455680500,0.002,3104.6,3104.3,5.61529207]
[1767455685003,0.002,3104.6,3104.1,8.83704009]
[1767455697637,0.002,3104.6,3104.3,3.22133814]
[1767455701420,2.27933499,3104.6,3104.2,0.845]
[1767455702727,2.27933499,3104.6,3104.0,0.00180296]
[1767455703230,2.27933499,3104.6,3104.1,0.845]
[1767455704830,2.27933499,3104.6,3104.2,0.845]
[1767455707406,5.5003645,3104.6,3104.2,0.845]
[1767455708203,5.5003645,3104.6,3104.1,3.2214932]
[1767455708403,5.5003645,3104.6,3104.2,0.845]
[1767455710043,2.27733499,3104.5,3104.2,0.845]
[1767455724355,2.27733499,3104.5,3104.2,0.84215]
[1767455728853,0.002,3104.6,3104.2,0.84215]
[1767455729043,2.27933499,3104.6,3104.2,0.84215]
[1767455736979,5.50036208,3104.6,3104.2,0.84215]
[1767455737276,2.27933499,3104.6,3104.2,0.84215]
[1767455740240,2.27933499,3104.6,3104.2,4.06357627]
[1767455740758,2.27933499,3104.6,3104.2,0.84215]
[1767455743565,0.002,3104.6,3104.2,0.84215]
[1767455762081,0.002,3104.6,3104.2,4.06357671]
[1767455763176,0.002,3104.6,3104.2,0.84215]
[1767455763885,2.39937845,3104.6,3104.2,0.84215]
[1767455764198,5.62043665,3104.6,3104.2,0.84215]
[1767455767907,2.39737845,3104.5,3104.1,0.001]
[1767455768482,3.2230582,3104.6,3104.1,0.001]
[1767455768788,6.50476551,3104.6,3104.1,0.001]
[1767455771589,0.88632886,3104.6,3104.1,0.001]
[1767455771796,0.002,3104.6,3104.1,0.001]
[1767455772609,0.002,3104.6,3104.1,2.4745594]
[1767455775986,0.00080296,3104.4,3103.3,0.05210468]
[1767455776315,0.002,3104.8,3104.3,0.07740188]
[1767455776486,0.96640611,3104.5,3104.4,0.845]
[1767455776681,3.2228335,3104.8,3104.4,0.845]
[1767455777116,2.39737845,3104.7,3104.4,0.845]
[1767455777614,2.39737845,3104.7,3104.3,0.845]
[1767455777818,2.39737845,3104.5,3104.3,0.845]
[1767455778138,2.39737845,3104.5,3103.6,2.55176416]
[1767455778139,2.39737845,3104.4,3103.6,0.00080288]
[1767455778297,2.39737845,3104.4,3103.1,0.001]
[1767455778298,2.39737845,3103.5,3103.1,0.001]
[1767455779220,2.39737845,3103.1,3102.7,0.001]
[1767455779434,2.39737845,3103.1,3102.4,0.001]
[1767455780097,3.22268772,3103.0,3102.4,0.001]
[1767455780293,8.84275389,3103.0,3102.4,0.001]
[1767455780498,9.72710957,3103.0,3102.4,0.001]
[1767455780816,3.24418204,3102.9,3102.4,0.001]
[1767455782227,6.46702254,3102.9,3102.4,0.001]
[1767455787124,5.62021895,3102.9,3102.4,0.001]
[1767455787323,0.16764703,3102.9,3102.8,2.4735594]
[1767455787526,3.22328672,3103.2,3102.8,3.3185594]
[1767455787730,0.00080288,3103.2,3102.9,2.4735594]
[1767455795356,0.00080288,3103.2,3102.8,0.845]
[1767455797858,0.00180288,3103.2,3102.8,0.845]
[1767455798226,0.00180288,3103.2,3102.8,4.06788695]
[1767455799057,0.00180288,3103.2,3102.8,6.3221589]
[1767455801548,0.00180288,3103.2,3102.8,4.06788695]
[1767455812139,0.00180288,3103.2,3102.8,6.3221589]
[1767455812334,0.00180288,3103.2,3102.9,2.25427195]
[1767455815574,0.00180288,3103.2,3102.8,4.06988695]
[1767455815874,0.00180288,3103.2,3102.8,6.3241589]
[1767455816172,0.00180288,3103.2,3102.8,4.06988695]
[1767455816751,0.00180288,3103.2,3102.8,0.847]
[1767455817095,2.30098929,3103.1,3102.4,0.001]
[1767455817241,2.30098929,3103.1,3102.5,0.845]
[1767455817974,5.52367701,3103.0,3102.5,0.845]
[1767455818347,2.30098929,3102.9,3102.5,0.845]
[1767455820778,5.52379629,3102.9,3102.5,0.845]
[1767455820977,6.39843787,3102.9,3102.5,0.845]
[1767455821182,6.39843787,3102.9,3102.8,0.002]
[1767455821361,6.39843787,3102.9,3102.5,0.845]
[1767455823096,2.26787985,3102.8,3102.5,0.845]
[1767455824291,2.26787985,3102.8,3102.4,0.001]
[1767455824590,2.26787985,3102.8,3102.6,0.845]
[1767455826591,2.26787985,3103.0,3102.6,0.845]
[1767455826794,3.45713152,3103.0,3102.6,0.845]
[1767455827265,2.26787985,3102.9,3102.6,0.845]
[1767455829478,5.49070737,3102.9,3102.6,0.845]
[1767455831294,2.26787985,3102.8,3102.5,0.002]
[1767455831501,2.30816604,3102.8,3102.6,0.845]
[1767455831697,2.26787985,3102.7,3102.6,0.845]
[1767455831902,2.26787985,3102.7,3102.4,0.001]
[1767455832083,2.81696223,3102.7,3102.4,0.001]
[1767455835388,6.03997314,3102.7,3102.4,0.001]
[1767455835592,2.26787985,3102.6,3102.4,0.001]
[1767455844386,2.26787985,3102.6,3101.9,2.75199299]
[1767455844387,2.26787985,3102.5,3101.9,2.75199299]
[1767455844585,6.44632758,3102.6,3101.9,2.75199299]
[1767455844586,3.13930059,3102.4,3101.9,2.75199299]
[1767455844785,3.13930059,3102.4,3101.9,0.001]
[1767455846520,3.13930059,3102.4,3101.9,3.22482192]
[1767455846890,2.26787985,3102.4,3101.9,3.22482192]
[1767455849432,2.26787985,3102.4,3101.9,0.001]
[1767455850431,2.41478425,3102.3,3101.9,0.001]
[1767455851533,2.41478425,3102.2,3101.9,0.001]
[1767455854325,5.63834069,3102.2,3101.9,0.001]
[1767455854624,6.52452079,3102.2,3101.9,0.001]
[1767455855206,2.41478425,3102.1,3101.9,0.001]
[1767455857622,0.8861801,3102.2,3101.9,0.001]
[1767455859009,2.41478425,3102.1,3101.5,0.002]
[1767455859215,2.41478425,3102.1,3101.5,2.47467598]
[1767455859414,4.11054366,3102.2,3101.5,2.47467598]
[1767455859634,0.65253279,3102.1,3101.5,2.47467598]
[1767455860241,0.65253279,3102.1,3101.6,3.22414237]
[1767455860911,0.0008032,3102.2,3101.7,2.47267598]
[1767455862329,0.0008032,3102.2,3101.9,0.002]
[1767455862513,0.0018032,3102.2,3101.9,0.002]
[1767455866646,0.0837467,3102.0,3100.2,2.47267598]
[1767455866866,0.00080232,3100.8,3100.0,2.47267598]
[1767455867030,0.00080232,3100.8,3100.6,0.0837467]
[1767455867228,0.00080232,3100.8,3100.4,0.0837467]
[1767455867823,2.41558657,3100.8,3100.4,0.0837467]
[1767455868317,2.65714523,3100.8,3099.9,6.63105361]
[1767455869044,5.63986245,3100.7,3100.1,0.0837467]
[1767455869349,2.41478425,3100.6,3100.1,0.0837467]
[1767455869648,3.2250782,3100.7,3100.1,2.55642268]
[1767455869854,5.63986245,3100.7,3100.1,2.55642268]
[1767455870320,3.2250782,3100.7,3100.1,2.55642268]
[1767455870819,6.30909541,3100.7,3100.1,2.55642268]
[1767455871060,6.30909541,3100.7,3100.1,0.0837467]
[1767455871348,2.41478425,3100.6,3100.1,0.0837467]
[1767455873345,2.41478425,3100.5,3100.1,0.0837467]
[1767455873513,3.22521166,3100.6,3100.1,0.0837467]
[1767455873719,3.89435086,3100.7,3100.1,0.0837467]
[1767455874112,6.30913511,3100.7,3100.1,0.0837467]
[1767455874517,2.41478425,3100.6,3100.1,0.0837467]
[1767455875543,3.89435086,3100.7,3100.1,0.0837467]
[1767455875737,0.66923296,3100.7,3100.2,2.47267598]
[1767455875937,5.88215235,3100.8,3100.2,2.47267598]
[1767455876139,3.4673681,3100.8,3100.2,2.47267598]
[1767455876334,0.00080232,3100.8,3100.2,2.47267598]
[1767455876529,3.22468889,3101.1,3100.8,2.47267598]
[1767455876729,8.86327691,3101.5,3100.8,2.47267598]
[1767455877521,2.41478425,3101.4,3100.8,2.47267598]
[1767455878262,6.44849266,3101.5,3100.8,2.47267598]
[1767455878456,1.20874842,3101.4,3100.8,2.47267598]
[1767455878655,3.62353267,3101.4,3100.4,0.8468024]
[1767455878862,3.62353267,3101.4,3099.9,1e-08]
[1767455878863,0.00080048,3100.3,3099.9,1e-08]
[1767455879170,2.41478425,3100.2,3099.5,0.00080128]
[1767455879468,0.00080128,3099.9,3099.4,2.47267598]
[1767455879626,0.00080128,3099.9,3099.3,3.31867598]
[1767455879826,0.00080128,3099.9,3099.3,6.54517435]
[1767455881151,0.00080128,3099.9,3099.4,2.37799217]
[1767455881524,0.00080128,3099.9,3099.4,5.60440901]
[1767455881758,0.00080048,3100.3,3099.8,2.37799217]
[1767455881957,3.22633602,3100.3,3099.8,2.37799217]
[1767455882459,6.45187156,3100.3,3099.5,2.38079353]
[1767455882949,3.22633602,3100.3,3099.5,2.38079353]
[1767455883660,6.45187156,3100.3,3099.5,2.38079353]
[1767455883849,3.22633602,3100.3,3099.7,2.37799217]
[1767455884050,0.00080048,3100.3,3099.7,2.37799217]
[1767455884247,0.00080048,3100.3,3099.9,2.37799217]
[1767455890171,0.00080048,3100.3,3100.0,2.37799217]
[1767455891343,0.00180048,3100.3,3100.1,2.37799217]
[1767455894646,3.2257766,3100.8,3100.3,2.37799217]
[1767455894867,3.2257766,3100.8,3100.4,2.37799217]
[1767455897810,0.0008024,3100.8,3100.4,2.37799217]
[1767455897954,3.22469701,3101.1,3100.8,2.37799217]
[1767455898148,3.22469701,3101.1,3100.2,2.37799217]
[1767455898149,2.41934347,3101.0,3100.2,2.37799217]
[1767455898399,0.00080248,3100.8,3100.2,2.37799217]
[1767455900387,0.00080248,3100.8,3100.1,0.846]
[1767455900552,0.88376016,3100.8,3100.2,2.37799217]
[1767455902193,3.2250782,3100.7,3100.2,2.37799217]
[1767455903349,5.6041121,3100.7,3100.1,0.846]
[1767455903890,2.3790339,3100.6,3100.1,0.846]
[1767455904386,5.6041121,3100.7,3100.1,4.07170173]
[1767455904596,5.6041121,3100.7,3100.1,0.846]
[1767455904995,3.22681949,3100.8,3100.1,6.44963994]
[1767455905158,2.38083638,3100.8,3100.2,2.37799217]
[1767455905359,3.22678792,3100.8,3100.2,2.37799217]
[1767455905594,0.00180248,3100.8,3100.2,2.37799217]
[1767455906383,2.38083638,3100.8,3100.2,5.60356551]
[1767455906693,2.38083638,3100.8,3100.2,3.22557334]
[1767455907255,2.3790339,3100.6,3100.1,0.846]
[1767455907980,2.3790339,3100.6,3100.1,4.07168612]
[1767455909881,5.64453244,3100.6,3100.1,4.07168612]
[1767455910059,2.40221672,3100.5,3100.1,4.07168612]
[1767455910383,2.34030541,3100.3,3099.9,0.00280056]
[1767455910695,2.34030541,3100.3,3099.9,0.84880056]
[1767455912691,2.34030541,3100.2,3099.9,0.84880056]
[1767455913890,2.34030541,3100.2,3099.9,4.07470462]
[1767455914498,2.34030541,3100.2,3099.9,0.84880056]
[1767455914674,2.90101829,3100.2,3099.9,0.84880056]
[1767455916863,2.90101829,3100.2,3099.9,0.00280056]
[1767455923508,2.90201829,3100.2,3099.9,0.00280056]
[1767455926002,6.12763371,3100.2,3099.9,0.00280056]
[1767455926476,2.34030541,3100.1,3099.9,0.00280056]
[1767455926674,2.34030541,3100.0,3099.9,0.00280056]
[1767455927602,0.93541299,3100.1,3099.9,0.00280056]
[1767455928404,0.001,3100.2,3099.9,0.00280056]
[1767455934913,0.04131997,3100.2,3099.9,0.00280056]
[1767455935303,0.001,3100.2,3099.9,0.00280056]
[1767455938115,0.001,3100.2,3099.5,0.00280136]
[1767455938116,2.36716008,3100.2,3099.5,0.00280136]
[1767455938328,2.36716008,3100.2,3099.5,6.45247237]
[1767455938988,2.36616008,3100.1,3099.5,0.84880136]
[1767455939203,2.64337741,3100.1,3099.5,0.84880136]
[1767455939823,2.60305614,3100.1,3099.5,0.84880136]
[1767455940523,3.22580645,3100.0,3099.5,0.84880136]
[1767455942018,5.56121192,3100.0,3099.5,0.84880136]
[1767455942621,5.56121192,3100.0,3099.5,4.07511877]
[1767455943107,2.33540547,3100.0,3099.5,4.07511877]
[1767455944925,5.56121706,3100.0,3099.5,4.07511877]
[1767455946323,2.33540547,3100.0,3099.5,4.07511877]
[1767455946522,5.56124541,3100.0,3099.5,0.84880136]
[1767455946824,2.33540547,3100.0,3099.5,4.07512532]
[1767455947124,2.33540547,3100.0,3099.5,0.84880136]
[1767455947125,5.56121592,3100.0,3099.5,0.84880136]
[1767455950026,0.04032388,3099.9,3099.5,0.84880136]
[1767455950397,9.68950943,3100.0,3099.5,0.84880136]
[1767455950725,2.37572935,3099.9,3099.5,0.84880136]
[1767455951423,5.561384,3099.9,3099.5,0.84880136]
[1767455951726,5.561384,3099.9,3099.5,0.00280136]
[1767455951922,6.55404136,3099.9,3099.5,0.00280136]
[1767455952228,2.33540547,3099.8,3099.5,0.00280136]
[1767455952817,4.21863589,3099.9,3099.5,0.00280136]
[1767455953010,2.33540547,3099.8,3099.5,0.00280136]
[1767455953404,5.56149547,3099.8,3099.5,0.00280136]
[1767455953735,2.33540547,3099.3,3098.6,0.8960245]
[1767455954097,2.33540547,3099.3,3098.7,2.40795015]
[1767455954298,2.33540547,3099.3,3098.6,0.8960245]
[1767455954918,2.33540547,3099.3,3098.6,1.7420245]
[1767455955119,2.33540547,3099.1,3098.6,1.7420245]
[1767455955532,2.33540547,3099.0,3098.6,1.7420245]
[1767455956298,0.00080184,3098.9,3098.3,5.63748995]
[1767455957931,1.60182258,3098.9,3098.3,5.63748995]
[1767455958427,1.60182258,3098.9,3098.3,5.58748995]
[1767455960231,1.60182258,3098.9,3098.2,4.07566775]
[1767455960232,0.23362058,3099.2,3098.5,2.40875207]
[1767455960403,1.64982106,3099.4,3098.5,2.40875207]
[1767455960404,4.87629217,3099.4,3098.5,2.40875207]
[1767455960605,3.22727143,3099.4,3098.5,2.40875207]
[1767455960806,4.87629217,3099.4,3098.5,2.40875207]
[1767455961040,1.64902074,3099.3,3098.5,2.40875207]
[1767455961217,3.22727143,3099.4,3098.5,2.40875207]
[1767455961407,4.03753569,3099.4,3098.5,2.40875207]
[1767455962038,4.03753569,3099.4,3098.7,2.40795015]
[1767455962234,4.03753569,3099.4,3098.6,3.22726392]
[1767455962235,4.03753569,3099.4,3098.8,3.25395015]
[1767455963362,4.03753569,3099.4,3098.9,2.40795015]
[1767455967642,7.2640068,3099.4,3098.9,2.40795015]
[1767455968043,7.2640068,3099.4,3098.8,0.846]
[1767455968241,0.00080032,3099.4,3098.9,2.40795015]
[1767455968538,0.00080032,3099.4,3099.0,2.40795015]
[1767455971334,0.00080032,3099.4,3099.0,5.63478408]
[1767455972143,0.00080032,3099.4,3099.1,2.30926897]
[1767455976113,0.00080032,3099.4,3099.0,3.22683393]
[1767455976318,0.00080032,3099.4,3098.9,5.7182492]
[1767455977419,0.00080032,3099.4,3099.0,0.846]
[1767455978031,0.00080032,3099.4,3099.0,4.07284503]
[1767455979451,0.00080032,3099.4,3099.0,6.56218296]
[1767455979954,0.00180032,3099.4,3099.0,6.56218296]
[1767455980553,0.00180032,3099.4,3099.0,5.71618296]
[1767455980738,0.00180032,3099.4,3099.0,6.56218296]
[1767455982147,0.00180032,3099.4,3099.0,5.71618296]
[1767455982353,0.00180032,3099.4,3099.0,6.56218296]
[1767455984847,0.00180032,3099.4,3099.0,6.5621792]
[1767455985656,0.00180032,3099.4,3099.1,2.48933793]
[1767455992671,0.00180032,3099.4,3099.1,5.71600013]
[1767455993464,0.00180032,3099.4,3099.2,2.48933793]
[1767455995364,0.00180032,3099.4,3099.1,5.71600013]
[1767455996862,0.00180032,3099.4,3099.2,2.48933793]
[1767455997042,0.00180032,3099.4,3099.3,2.48933793]
[1767455997546,0.00180032,3099.4,3099.1,5.71608117]
[1767455997956,0.00180032,3099.4,3099.1,2.48933793]
[1767455999054,0.00080136,3099.9,3099.6,2.48933793]
[1767455999253,2.08806664,3100.0,3099.5,0.00080144]
[1767456002682,2.08706664,3099.8,3099.0,0.0008004]
[1767456002978,2.08706664,3099.6,3099.0,0.0008004]
[1767456003358,0.20878681,3099.7,3099.0,2.25191129]
[1767456003577,3.22615013,3099.7,3099.0,2.25191129]
[1767456005482,0.00080144,3099.9,3099.2,2.25111089]
[1767456005872,3.22603993,3099.8,3099.2,2.25111089]
[1767456006184,3.22673663,3099.9,3099.2,2.25111089]
[1767456007290,0.001,3099.7,3099.2,2.25111089]
[1767456007488,0.001,3099.7,3099.2,5.4777095]
[1767456009192,0.001,3099.7,3099.3,2.25111089]
[1767456010876,0.001,3099.7,3099.0,3.22760291]
[1767456010877,2.08806664,3099.7,3099.0,3.22760291]
[1767456011080,0.21283918,3099.6,3099.0,5.4787138]
[1767456011282,0.21283918,3099.6,3099.1,2.25111089]
[1767456011758,3.43911935,3099.6,3099.1,2.25111089]
[1767456011960,3.22628017,3099.6,3099.1,5.47785338]
[1767456012478,3.22628017,3099.6,3099.2,2.25111089]
[1767456012664,3.22716688,3099.7,3099.2,2.25111089]
[1767456013785,0.001,3099.7,3099.3,2.25111089]
[1767456014362,0.20988681,3099.7,3099.1,5.47781622]
[1767456016590,3.43604168,3099.7,3099.2,2.25111089]
[1767456020093,0.20988681,3099.7,3099.2,2.25111089]
[1767456020297,0.001,3099.7,3099.3,2.25111089]
[1767456020590,0.00080144,3099.9,3099.5,2.25111089]
[1767456020790,0.00080144,3099.9,3099.6,2.25111089]
[1767456021092,0.00080144,3099.9,3099.6,2.56082198]
[1767456022365,0.00080144,3099.9,3099.8,2.25111089]
[1767456024591,0.001,3100.2,3099.9,2.25111089]
[1767456024780,0.001,3100.2,3100.0,2.25111089]
[1767456025177,0.001,3100.2,3099.8,5.47712547]
[1767456025373,0.001,3100.2,3099.7,0.846]
[1767456025579,0.001,3100.2,3099.7,3.09711089]
[1767456025775,2.29903494,3100.2,3099.5,0.00080152]
[1767456026075,2.33935491,3100.2,3099.5,0.00080152]
[1767456026599,0.001,3099.9,3099.5,0.00080152]
[1767456026773,3.22691051,3099.9,3099.5,2.25191241]
[1767456026978,0.04032518,3099.8,3099.5,0.00080152]
[1767456027167,0.001,3099.9,3099.5,0.00080152]
[1767456027568,0.001,3099.9,3099.5,2.25191241]
[1767456027768,0.001,3099.9,3099.5,0.00080152]
[1767456027998,0.001,3099.9,3099.5,2.25191241]
[1767456028378,0.001,3099.9,3099.5,0.00080152]
[1767456028697,0.001,3099.9,3099.5,2.25191241]
[1767456029063,0.001,3099.9,3099.5,0.00080152]
[1767456029266,0.001,3099.9,3099.5,2.25191241]
[1767456030173,0.001,3099.9,3099.5,5.47823511]
[1767456030701,0.001,3099.9,3099.5,2.25191241]
[1767456031703,0.001,3099.9,3099.5,0.00080152]
[1767456032900,0.001,3099.9,3099.5,2.40327774]
[1767456034396,0.001,3099.9,3099.5,5.62958645]
[1767456035197,0.001,3099.9,3099.6,2.40247622]
[1767456035393,0.001,3100.2,3099.9,2.40247622]
[1767456036705,0.001,3100.2,3100.0,2.40247622]
[1767456039716,0.001,3100.2,3099.5,4.11270318]
[1767456039717,5.08415805,3100.2,3099.5,0.00080152]
[1767456040010,2.59846394,3100.1,3099.5,0.00080152]
[1767456040383,2.59846394,3100.1,3099.5,2.40327774]
[1767456040614,2.59846394,3100.1,3099.5,0.00080152]
[1767456041079,2.08986808,3100.1,3099.5,0.00080152]
[1767456042108,5.31567453,3100.0,3099.5,0.00080152]
[1767456043420,3.22580645,3100.0,3099.5,2.40327774]
[1767456045017,8.54148098,3100.0,3099.5,0.00080152]
[1767456045197,2.08986808,3099.9,3099.5,0.00080152]
[1767456045398,0.8541481,3099.8,3099.5,0.00080152]
[1767456046118,0.8541481,3099.8,3099.5,0.00280152]
[1767456046727,4.08019073,3099.8,3099.5,0.00280152]
[1767456051302,0.8541481,3099.8,3099.5,2.40527774]
[1767456051500,3.22593435,3099.9,3099.5,2.40527774]
[1767456052913,0.001,3100.0,3099.5,2.40527774]
[1767456053517,0.001,3100.2,3100.0,2.40247622]
[1767456053718,0.001,3100.2,3100.0,2.36048024]
[1767456057620,0.001,3100.2,3100.1,2.40247622]
[1767456065429,0.001,3100.2,3100.1,5.62817861]
[1767456065638,0.00032628,3101.0,3100.5,2.33721073]
[1767456066826,5.35795807,3101.0,3100.4,2.33801329]
[1767456067029,3.22509401,3101.0,3100.4,2.33801329]
[1767456067239,0.00032628,3101.0,3100.4,2.33801329]
[1767456067406,0.00032628,3101.0,3100.5,2.86630906]
[1767456067737,0.00032628,3101.0,3100.6,2.33721073]
[1767456068496,5.35842229,3101.2,3100.6,2.33721073]
[1767456068497,0.001,3101.2,3100.6,2.33721073]
[1767456069724,0.001,3101.2,3100.7,5.56228893]
[1767456069921,0.001,3101.2,3100.7,2.33721073]
[1767456070414,0.001,3101.2,3100.7,3.2688734]
[1767456070810,0.001,3101.2,3100.8,2.33721073]
[1767456072537,0.001,3101.2,3100.6,3.22513884]
[1767456072538,0.001,3101.2,3100.6,5.56234957]
[1767456072840,0.001,3101.2,3100.7,3.2250755]
[1767456073207,0.001,3101.2,3100.7,5.56228623]
[1767456074340,0.001,3101.2,3100.7,2.33721073]
[1767456075046,2.13386406,3101.2,3100.5,6.09155]
[1767456075234,2.13386406,3101.2,3100.6,2.33721073]
[1767456075738,2.13386406,3101.2,3100.5,3.75433927]
[1767456075946,2.13386406,3101.2,3100.6,2.33721073]
[1767456076819,3.22466221,3101.1,3100.5,3.75433927]
[1767456077020,3.22466221,3101.1,3100.5,6.09155]
[1767456077236,5.35846819,3101.2,3100.5,6.09155]
[1767456077436,2.17317233,3101.1,3100.5,3.22524094]
[1767456077741,2.13286406,3101.1,3100.5,3.22524094]
[1767456078044,2.13286406,3101.1,3100.5,5.56245167]
[1767456079761,2.13286406,3101.0,3100.4,0.00080256]
[1767456079919,2.13286406,3101.0,3100.4,3.21693429]
[1767456082350,5.35763724,3101.0,3100.4,6.44222259]
[1767456084271,2.13286406,3101.0,3100.4,6.44222259]
[1767456085466,5.39794307,3101.0,3100.4,4.10501186]
[1767456085770,5.3576335,3101.0,3100.4,5.56330159]
[1767456087644,5.3576335,3101.0,3100.4,5.56530159]
[1767456087969,5.3586335,3101.0,3100.4,5.56530159]
[1767456088747,5.3586335,3101.0,3100.4,3.22809086]
[1767456089351,2.13286406,3100.9,3100.4,0.00280256]
[1767456089551,2.13286406,3100.8,3100.4,0.00280256]
[1767456089781,2.13286406,3100.8,3100.0,0.002]
[1767456089966,2.13366662,3100.8,3100.0,0.002]
[1767456090350,2.1300615,3100.6,3100.0,0.002]
[1767456092213,2.1300615,3100.4,3100.0,0.002]
[1767456092371,2.66559627,3100.3,3100.0,0.002]
[1767456092776,2.1300615,3100.2,3100.0,0.002]
[1767456097008,2.1300615,3100.1,3100.0,0.002]
[1767456097211,2.1300615,3100.1,3099.9,0.00080064]
[1767456099116,3.22560806,3100.2,3099.9,0.00080064]
[1767456099411,0.37611428,3100.1,3099.9,0.00080064]
[1767456100416,0.37611428,3100.1,3099.6,2.37707797]
[1767456100712,2.50617578,3100.1,3099.5,0.00280152]
[1767456101517,3.22580645,3100.0,3099.5,0.00280152]
[1767456102015,5.35586795,3100.0,3099.5,0.00280152]
[1767456102215,0.8957723,3099.9,3099.5,0.00280152]
[1767456103007,3.0258338,3099.9,3099.5,0.00280152]
[1767456104994,4.12176377,3099.9,3099.5,0.00280152]
[1767456106222,6.25182527,3099.9,3099.5,0.00280152]
[1767456108086,4.12176377,3099.9,3099.5,2.37987949]
[1767456108291,4.12176377,3099.9,3099.5,0.00280152]
[1767456108517,0.62518253,3099.8,3099.5,0.00280152]
[1767456108721,4.12176377,3099.9,3099.5,0.00280152]
[1767456108722,3.22599147,3099.9,3099.5,2.37987949]
[1767456108921,0.001,3100.2,3099.5,2.37987949]
[1767456108922,0.847,3100.2,3099.7,2.37707797]
[1767456109219,0.001,3100.2,3099.7,2.37707797]
[1767456109826,0.001,3100.2,3099.8,2.37707797]
[1767456110027,0.46188514,3100.2,3099.8,2.37707797]
[1767456110739,0.001,3100.2,3099.8,2.37707797]
[1767456111832,0.001,3100.2,3100.0,2.37707797]
[1767456113746,0.84680256,3100.8,3100.2,5.60267631]
[1767456113950,4.07178851,3100.8,3100.2,5.60267631]
[1767456114326,0.00080256,3100.8,3100.2,3.22559834]
[1767456114647,0.00080256,3100.8,3100.3,2.37707797]
[1767456115046,3.22577712,3100.8,3100.3,2.37707797]
[1767456115346,5.67849573,3100.8,3100.1,5.60273852]
[1767456116056,0.001,3100.2,3100.1,5.60273852]
[1767456117830,5.35583862,3100.8,3100.1,5.60273852]
[1767456120263,5.35583862,3100.8,3100.2,2.46161758]
[1767456120560,5.35583862,3100.8,3099.9,0.00080072]
[1767456120561,2.17037497,3100.7,3099.9,0.00080072]
[1767456122356,3.22518222,3100.6,3099.9,2.4624183]
[1767456122557,3.22511517,3100.7,3099.9,2.4624183]
[1767456122964,3.22582281,3100.8,3099.9,2.4624183]
[1767456123258,0.00080256,3100.8,3100.1,2.46161758]
[1767456123435,3.22578308,3100.8,3100.1,2.46161758]
[1767456125843,0.00080256,3100.8,3100.1,5.68723205]
[1767456126040,0.00080256,3100.8,3100.2,2.46161758]
[1767456127062,0.00180256,3100.8,3100.2,2.46161758]
[1767456127673,0.00180256,3100.8,3100.3,2.46161758]
[1767456128600,0.00180256,3100.8,3100.4,2.46161758]
[1767456130967,0.00180256,3100.8,3100.6,2.46161758]
[1767456134556,0.00180256,3100.8,3100.6,2.45961758]
[1767456135378,0.00180256,3100.8,3100.4,5.68700785]
[1767456135758,0.00180256,3100.8,3100.5,2.46161758]
[1767456137780,0.00180256,3100.8,3100.5,5.68687796]